bitfinex-derivatives/quotes_SOLF0:USTF0_20241010
["timestamp","ask_amount","ask_price","bid_price","bid_amount"]
[1728540181105,3.5644,140.44,140.41,15.605]
[1728540182303,3.5644,140.44,140.42,12.04]
[1728540182505,3.5642,140.45,140.42,15.6047]
[1728540187213,3.58554044,140.46,140.42,12.04]
[1728540187422,12.04,140.45,140.41,12.04]
[1728540187815,3.5643,140.44,140.41,12.04]
[1728540188014,12.04,140.45,140.41,12.04]
[1728540188512,3.5646,140.43,140.41,12.04]
[1728540191017,3.565,140.42,140.38,99.14276739]
[1728540191222,3.565,140.42,140.39,12.16502]
[1728540191721,12.04,140.44,140.39,0.12502]
[1728540191722,3.5651,140.41,140.39,0.12502]
[1728540191923,3.5651,140.41,140.39,12.16502]
[1728540192421,3.5649,140.42,140.39,12.16502]
[1728540193016,3.5649,140.42,140.39,15.73052]
[1728540196126,3.5646,140.43,140.4,15.6053]
[1728540196315,3.5646,140.43,140.4,12.04]
[1728540196521,12.04,140.43,140.39,12.16502]
[1728540196827,3.5648,140.42,140.39,12.16502]
[1728540197927,3.5648,140.42,140.39,15.73042]
[1728540200535,12.04,140.44,140.39,12.16502]
[1728540200734,3.565,140.42,140.39,12.16502]
[1728540201433,3.5651,140.41,140.39,0.12502]
[1728540203630,12.04,140.43,140.39,0.12502]
[1728540204738,3.5653,140.4,140.39,0.12502]
[1728540206737,3.5651,140.41,140.39,0.12502]
[1728540207440,3.5647,140.43,140.39,15.73042]
[1728540207628,12.04,140.44,140.39,15.73042]
[1728540208437,3.5648,140.42,140.39,15.73042]
[1728540217845,3.61940501,140.45,140.41,12.04]
[1728540218041,12.04,140.44,140.41,12.04]
[1728540219437,3.5648,140.42,140.41,12.04]
[1728540219638,3.5648,140.42,140.4,12.04]
[1728540219842,3.565,140.41,140.39,12.16502]
[1728540220851,3.565,140.41,140.39,0.12502]
[1728540225346,12.04,140.42,140.39,0.12502]
[1728540225651,3.5653,140.4,140.39,0.12502]
[1728540232459,8.6653,140.4,140.39,0.12502]
[1728540245359,4.8756,140.42,140.39,15.73052]
[1728540245561,3.48520282,140.43,140.4,12.04]
[1728540245771,5.1,140.43,140.4,12.04]
[1728540245974,3.5648,140.42,140.4,12.04]
[1728540246266,3.5648,140.42,140.39,3.69052]
[1728540246267,12.04,140.41,140.39,0.12502]
[1728540246465,20.7053,140.4,140.39,0.12502]
[1728540246663,8.6653,140.4,140.39,0.12502]
[1728540249570,20.7053,140.4,140.39,0.12502]
[1728540250269,8.6653,140.4,140.39,0.12502]
[1728540250573,20.7053,140.4,140.39,0.12502]
[1728540258788,8.6653,140.4,140.39,0.12502]
[1728540261895,20.7053,140.4,140.39,0.12502]
[1728540262193,8.6653,140.4,140.39,0.12502]
[1728540262383,20.7053,140.4,140.39,0.12502]
[1728540264602,15.6053,140.4,140.39,0.12502]
[1728540264787,20.7253,140.4,140.39,0.12502]
[1728540265891,20.7253,140.4,140.33,0.12502]
[1728540265892,3.5668,140.34,140.33,0.12502]
[1728540266091,20.7268,140.34,140.33,0.12502]
[1728540266691,3.5682,140.29,140.26,12.04]
[1728540267399,15.6083,140.28,140.24,1.4338]
[1728540267985,3.5683,140.28,140.24,1.4338]
[1728540268200,15.6083,140.28,140.24,1.4338]
[1728540269298,20.7283,140.28,140.24,1.4338]
[1728540271097,8.6883,140.28,140.24,1.4338]
[1728540271407,20.7283,140.28,140.24,13.4738]
[1728540271813,20.7283,140.28,140.24,1.4338]
[1728540272204,20.7283,140.28,140.24,5.0032]
[1728540272205,8.6883,140.28,140.24,5.0032]
[1728540272404,8.6883,140.28,140.24,17.0432]
[1728540272614,20.7283,140.28,140.24,17.0432]
[1728540273216,20.7283,140.28,140.24,5.0032]
[1728540273417,20.7283,140.28,140.24,17.0432]
[1728540274119,20.7482,140.29,140.25,3.5691]
[1728540274513,20.7482,140.29,140.25,15.6091]
[1728540274712,3.5683,140.28,140.24,17.043]
[1728540277319,15.6083,140.28,140.23,15.6096]
[1728540277822,15.6083,140.28,140.22,4.9944]
[1728540278119,15.6083,140.28,140.22,17.0344]
[1728540279922,3.5683,140.28,140.22,13.4646]
[1728540280116,15.6083,140.28,140.23,3.5695]
[1728540285021,3.5683,140.28,140.23,3.5695]
[1728540285226,20.8483,140.28,140.24,15.6092]
[1728540285423,20.8483,140.28,140.24,3.5692]
[1728540285627,20.8483,140.28,140.24,15.6092]
[1728540286527,15.6083,140.28,140.24,15.6092]
[1728540286826,20.8483,140.28,140.24,15.6092]
[1728540288126,8.8083,140.28,140.24,15.6092]
[1728540288334,5.24,140.28,140.24,12.04]
[1728540288930,5.24,140.28,140.26,3.5688]
[1728540289128,15.6082,140.29,140.26,3.5688]
[1728540290930,15.6082,140.29,140.25,3.569]
[1728540292823,15.6082,140.29,140.26,3.5689]
[1728540294238,3.5682,140.29,140.26,3.5689]
[1728540294424,15.6082,140.29,140.26,3.5689]
[1728540296437,15.6082,140.29,140.25,15.609]
[1728540298032,3.5675,140.32,140.28,15.6082]
[1728540298233,5.24,140.32,140.28,15.6082]
[1728540298434,17.28,140.32,140.28,15.6082]
[1728540298638,17.28,140.32,140.28,3.5682]
[1728540298834,12.04,140.31,140.28,3.5682]
[1728540299433,15.6077,140.31,140.28,3.5682]
[1728540300037,15.6077,140.31,140.27,0.12502]
[1728540300232,15.6077,140.31,140.27,3.69362]
[1728540300435,3.5683,140.28,140.27,0.12502]
[1728540300640,15.6083,140.28,140.27,0.12502]
[1728540304840,3.5691,140.26,140.22,3.5698]
[1728540305045,15.6091,140.26,140.22,3.5698]
[1728540306243,5.24,140.27,140.22,12.04]
[1728540306539,17.28,140.27,140.23,3.5694]
[1728540307137,12.04,140.26,140.21,1.45002]
[1728540307336,15.6091,140.26,140.22,3.5697]
[1728540308645,5.24,140.27,140.24,12.04]
[1728540308944,17.28,140.29,140.25,12.04]
[1728540309333,3.5684,140.28,140.25,15.609]
[1728540312439,8.8081,140.29,140.26,3.5688]
[1728540314842,8.8081,140.29,140.26,15.6088]
[1728540319148,8.8081,140.29,140.26,3.5688]
[1728540322747,8.8081,140.29,140.25,15.609]
[1728540325145,53.58671557,140.31,140.26,12.04]
[1728540325347,53.58671557,140.31,140.29,12.04]
[1728540326053,53.58671557,140.31,140.28,3.5681]
[1728540326251,65.62671557,140.31,140.28,3.5681]
[1728540326955,15.6079,140.3,140.27,4.9849]
[1728540331452,3.5679,140.3,140.27,4.9849]
[1728540332057,3.5679,140.3,140.27,17.0249]
[1728540332353,65.62671557,140.31,140.27,13.4564]
[1728540332557,3.5683,140.29,140.27,1.4164]
[1728540333748,3.5683,140.29,140.11,21.41]
[1728540333749,12.04,140.28,140.21,0.12502]
[1728540333949,12.04,140.28,140.22,17.24]
[1728540334149,12.04,140.28,140.24,12.04]
[1728540334150,3.5687,140.27,140.24,12.04]
[1728540337962,3.5687,140.27,140.25,12.04]
[1728540338465,58.78671557,140.31,140.26,12.04]
[1728540339251,53.58671557,140.31,140.26,12.04]
[1728540339457,18.6268,140.32,140.26,12.04]
[1728540340064,3.5683,140.29,140.26,12.04]
[1728540342958,15.608,140.3,140.26,15.6087]
[1728540343152,12.04,140.3,140.26,15.6087]
[1728540344464,3.5681,140.29,140.26,15.6087]
[1728540348271,3.5681,140.29,140.26,12.04]
[1728540348473,3.5684,140.28,140.26,12.04]
[1728540350678,12.04,140.3,140.26,12.04]
[1728540350978,3.5681,140.29,140.26,15.6088]
[1728540351476,3.5681,140.29,140.26,12.04]
[1728540358578,3.5688,140.27,140.24,12.04]
[1728540358778,12.04,140.28,140.24,12.04]
[1728540359172,12.04,140.28,140.23,5.14]
[1728540359377,12.04,140.28,140.23,17.18]
[1728540360174,3.569,140.26,140.23,20.7495]
[1728540360579,3.569,140.26,140.23,15.6095]
[1728540360887,3.5693,140.25,140.23,12.04]
[1728540361383,3.5693,140.25,140.22,16.9845]
[1728540361578,12.04,140.27,140.22,13.4146]
[1728540361775,15.62254702,140.27,140.21,8.83502]
[1728540361975,16.96144702,140.27,140.22,12.04]
[1728540362172,12.04,140.26,140.22,12.04]
[1728540362373,12.04,140.26,140.21,12.16502]
[1728540362776,3.5697,140.23,140.21,12.16502]
[1728540363783,3.5697,140.23,140.21,0.12502]
[1728540363988,3.5699,140.22,140.21,0.12502]
[1728540367985,5.14,140.26,140.21,12.16502]
[1728540368193,17.18,140.26,140.21,12.16502]
[1728540368487,17.18,140.26,140.22,12.04]
[1728540368994,3.5695,140.24,140.22,12.04]
[1728540372989,3.5695,140.24,140.21,0.12502]
[1728540373199,3.5695,140.24,140.21,12.16502]
[1728540373384,3.5695,140.24,140.21,15.73502]
[1728540373790,3.5695,140.24,140.21,12.16502]
[1728540375595,12.04,140.25,140.21,0.12502]
[1728540375899,3.5698,140.23,140.21,0.12502]
[1728540386509,12.04,140.25,140.21,0.12502]
[1728540387313,3.5694,140.24,140.21,0.12502]
[1728540387701,3.5694,140.24,140.21,12.16502]
[1728540390312,3.5697,140.23,140.21,12.16502]
[1728540392416,3.5697,140.23,140.21,0.12502]
[1728540393509,3.5704,140.2,140.15,12.16502]
[1728540393719,8.6704,140.2,140.15,12.16502]
[1728540394018,8.6704,140.2,140.16,12.04]
[1728540394220,5.1,140.2,140.17,15.6111]
[1728540394718,5.1,140.22,140.19,15.6105]
[1728540394917,3.5698,140.23,140.2,12.04]
[1728540395811,3.5701,140.22,140.18,15.6108]
[1728540402517,3.5703,140.21,140.18,12.04]
[1728540403013,3.5704,140.2,140.17,15.611]
[1728540405414,12.04,140.21,140.17,12.04]
[1728540405617,3.5706,140.2,140.17,15.6111]
[1728540406223,3.5707,140.19,140.17,12.04]
[1728540409419,58.64488242,140.27,140.18,12.04]
[1728540409617,12.04,140.24,140.18,12.04]
[1728540409824,5.14,140.23,140.18,12.04]
[1728540410517,58.64488242,140.27,140.21,12.04]
[1728540410725,5.14,140.26,140.21,12.04]
[1728540410924,17.18,140.26,140.21,12.04]
[1728540411124,3.5692,140.25,140.22,12.04]
[1728540412222,3.5694,140.24,140.21,15.61]
[1728540412729,3.5694,140.24,140.21,12.04]
[1728540413231,17.18,140.26,140.2,3.5703]
[1728540413430,3.5696,140.24,140.21,12.04]
[1728540414028,3.5697,140.23,140.2,12.04]
[1728540417228,3.5697,140.23,140.21,12.04]
[1728540417427,3.5695,140.24,140.21,12.04]
[1728540417633,5.14,140.26,140.22,12.04]
[1728540417933,3.5692,140.25,140.22,15.6099]
[1728540418122,3.5692,140.25,140.22,12.04]
[1728540419834,17.18,140.26,140.21,12.04]
[1728540420033,3.5695,140.24,140.21,12.04]
[1728540424539,3.5692,140.25,140.22,12.04]
[1728540424748,53.7234354,140.27,140.24,12.04]
[1728540424938,0.12502,140.27,140.26,12.04]
[1728540425238,12.04,140.32,140.26,12.04]
[1728540425439,12.04,140.31,140.27,12.04]
[1728540425642,1.46512,140.33,140.26,5.14]
[1728540425643,12.04,140.3,140.26,5.14]
[1728540425833,3.5685,140.28,140.25,12.04]
[1728540426033,12.04,140.3,140.25,12.04]
[1728540426333,3.5685,140.28,140.26,12.04]
[1728540426530,1.46512,140.33,140.26,12.04]
[1728540426938,3.5682,140.29,140.26,12.04]
[1728540428232,3.5685,140.28,140.24,8.7093]
[1728540428444,3.5685,140.28,140.25,12.04]
[1728540430440,12.04,140.3,140.25,12.04]
[1728540430638,3.5687,140.27,140.25,12.04]
[1728540432238,12.04,140.3,140.25,12.04]
[1728540432445,3.5684,140.28,140.25,15.6091]
[1728540433447,3.5684,140.28,140.27,12.04]
[1728540433839,3.5682,140.29,140.27,12.04]
[1728540434344,1.46512,140.33,140.28,12.04]
[1728540434545,13.50512,140.33,140.28,12.04]
[1728540435247,3.5675,140.32,140.28,12.04]
[1728540435546,13.50512,140.33,140.28,12.04]
[1728540435748,3.5678,140.31,140.28,12.04]
[1728540435942,3.5678,140.31,140.29,12.04]
[1728540436347,1.46512,140.33,140.29,12.04]
[1728540436540,3.5674,140.32,140.3,12.04]
[1728540438145,3.5676,140.31,140.28,13.4691]
[1728540438353,3.5676,140.31,140.29,5.1]
[1728540440541,12.16502,140.33,140.29,5.1]
[1728540440741,12.04,140.31,140.28,5.1]
[1728540441553,3.5678,140.3,140.28,5.1]
[1728540443151,3.5678,140.3,140.28,17.14]
[1728540443755,3.5677,140.31,140.29,12.04]
[1728540444447,3.5673,140.32,140.29,12.04]
[1728540444749,3.5673,140.32,140.3,12.04]
[1728540445449,0.12502,140.33,140.31,12.04]
[1728540445650,0.12502,140.33,140.3,12.04]
[1728540445858,3.69222,140.33,140.3,12.04]
[1728540448266,3.5673,140.32,140.3,12.04]
[1728540450061,0.12502,140.33,140.3,12.04]
[1728540450257,3.69222,140.33,140.3,15.6078]
[1728540451162,3.69222,140.33,140.32,12.04]
[1728540451873,3.69222,140.33,140.31,12.04]
[1728540454369,12.16502,140.33,140.3,12.04]
[1728540455371,3.5676,140.31,140.3,12.04]
[1728540458873,3.69222,140.33,140.3,12.04]
[1728540459182,3.69222,140.33,140.31,12.04]
[1728540460181,0.12502,140.33,140.29,4.9116]
[1728540460377,3.5675,140.32,140.31,12.04]
[1728540460584,12.16502,140.33,140.29,1.3437]
[1728540460877,12.16502,140.33,140.29,13.3837]
[1728540461084,3.5676,140.31,140.29,13.3837]
[1728540462887,12.16502,140.33,140.29,12.04]
[1728540463084,3.568,140.3,140.28,12.04]
[1728540464382,3.568,140.3,140.27,5.1]
[1728540464383,3.5677,140.31,140.29,12.04]
[1728540464576,3.5677,140.31,140.3,12.04]
[1728540468192,0.12502,140.33,140.27,5.1]
[1728540468394,3.5679,140.3,140.28,12.04]
[1728540469391,3.5679,140.3,140.29,12.04]
[1728540473595,12.04,140.31,140.25,12.04]
[1728540473795,12.04,140.3,140.25,12.04]
[1728540474986,12.04,140.3,140.24,8.6693]
[1728540474987,12.04,140.31,140.27,12.04]
[1728540475693,3.5683,140.29,140.27,12.04]
[1728540477198,3.5678,140.31,140.28,12.04]
[1728540477597,3.5678,140.31,140.3,12.04]
[1728540478504,1.3477,140.32,140.28,12.04]
[1728540478800,3.5679,140.3,140.28,12.04]
[1728540480401,13.3877,140.32,140.28,12.04]
[1728540480698,3.5681,140.29,140.28,12.04]
[1728540480888,3.5681,140.29,140.27,12.04]
[1728540481097,3.5681,140.29,140.27,17.14]
[1728540482900,3.5681,140.29,140.27,12.04]
[1728540484701,3.5681,140.29,140.28,12.04]
[1728540484997,1.3477,140.32,140.28,12.04]
[1728540485209,1.42962,140.33,140.31,12.04]
[1728540485597,3.5673,140.32,140.31,12.04]
[1728540491108,3.69212,140.33,140.31,12.04]
[1728540491303,3.69212,140.33,140.32,12.04]
[1728540491796,0.12502,140.33,140.32,12.04]
[1728540495012,3.69212,140.33,140.32,12.04]
[1728540496404,0.12502,140.33,140.32,12.04]
[1728540497918,3.69212,140.33,140.32,12.04]
[1728540498619,3.5675,140.32,140.3,12.04]
[1728540501323,3.69212,140.33,140.31,12.04]
[1728540501822,3.69212,140.33,140.32,12.04]
[1728540504122,0.12502,140.33,140.32,12.04]
[1728540504626,0.12502,140.33,140.31,12.04]
[1728540509819,3.69222,140.33,140.31,12.04]
[1728540510123,0.12502,140.33,140.31,12.04]
[1728540510528,3.5673,140.32,140.31,12.04]
[1728540511231,0.12502,140.33,140.32,3.5673]
[1728540511421,0.12502,140.33,140.32,15.6073]
[1728540511624,3.5663,140.37,140.32,20.7073]
[1728540511824,12.16502,140.39,140.35,12.04]
[1728540512531,0.12502,140.39,140.35,12.04]
[1728540512731,0.12502,140.39,140.37,12.04]
[1728540513227,0.12502,140.39,140.32,5.1]
[1728540513434,12.16502,140.39,140.35,12.04]
[1728540513633,12.16502,140.39,140.34,12.04]
[1728540513829,3.5668,140.35,140.33,12.04]
[1728540514036,12.04,140.38,140.33,12.04]
[1728540515436,3.5667,140.35,140.33,12.04]
[1728540516036,3.5667,140.35,140.34,12.04]
[1728540516938,12.16502,140.39,140.34,12.04]
[1728540516939,3.5664,140.36,140.34,12.04]
[1728540517137,3.5664,140.36,140.35,12.04]
[1728540519341,3.5666,140.35,140.33,17.14]
[1728540519637,12.04,140.38,140.33,17.14]
[1728540519842,3.5668,140.35,140.33,17.14]
[1728540520030,12.04,140.38,140.33,17.14]
[1728540520435,3.5667,140.35,140.33,17.14]
[1728540522228,3.5667,140.35,140.33,12.04]
[1728540522427,3.5671,140.33,140.32,12.04]
[1728540523031,12.04,140.35,140.29,1.3176]
[1728540523236,3.5675,140.32,140.3,17.14]
[1728540523939,3.5675,140.32,140.31,12.04]
[1728540524536,3.5675,140.32,140.3,5.1]
[1728540524734,12.04,140.36,140.31,12.04]
[1728540524937,3.5672,140.33,140.31,12.04]
[1728540527639,3.5672,140.33,140.32,12.04]
[1728540528245,3.5672,140.33,140.3,5.1]
[1728540528542,3.5672,140.33,140.32,12.04]
[1728540530047,3.567,140.34,140.32,12.04]
[1728540531637,3.5668,140.35,140.33,12.04]
[1728540531839,3.5668,140.35,140.34,12.04]
[1728540533341,3.5668,140.35,140.33,12.04]
[1728540537452,5.1,140.38,140.33,12.04]
[1728540537844,5.1,140.38,140.33,17.14]
[1728540538145,3.5665,140.36,140.33,17.14]
[1728540538736,3.5665,140.36,140.35,12.04]
[1728540540041,3.5668,140.34,140.33,5.1]
[1728540541441,3.5667,140.35,140.33,5.1]
[1728540548969,3.5667,140.35,140.34,12.04]
[1728540550961,3.5665,140.36,140.34,12.04]
[1728540554058,0.12502,140.39,140.35,12.04]
[1728540554356,3.5662,140.37,140.35,12.04]
[1728540555658,0.12502,140.39,140.36,12.04]
[1728540555864,3.69072,140.39,140.37,12.04]
[1728540556658,3.5658,140.38,140.37,12.04]
[1728540557058,3.5658,140.38,140.36,17.14]
[1728540557357,3.5661,140.37,140.36,17.14]
[1728540557558,3.5661,140.37,140.36,5.1]
[1728540559960,3.5661,140.37,140.36,17.14]
[1728540561267,3.5659,140.38,140.36,17.14]
[1728540562164,3.5659,140.38,140.36,12.04]
[1728540562558,0.12502,140.39,140.36,12.04]
[1728540562765,3.5661,140.37,140.36,12.04]
[1728540563461,3.5658,140.38,140.36,12.04]
[1728540565665,3.69072,140.39,140.37,12.04]
[1728540567468,3.69072,140.39,140.35,8.6665]
[1728540567667,3.69072,140.39,140.37,12.04]
[1728540569667,0.12502,140.39,140.36,12.04]
[1728540569874,0.12502,140.39,140.34,6.5183]
[1728540570065,0.12502,140.39,140.34,18.5583]
[1728540570261,3.5659,140.38,140.34,18.5583]
[1728540570465,0.12502,140.39,140.34,18.5583]
[1728540570668,0.12502,140.39,140.36,12.04]
[1728540570874,3.5661,140.37,140.36,12.04]
[1728540571569,0.12502,140.39,140.36,12.04]
[1728540571876,3.69072,140.39,140.38,12.04]
[1728540579173,0.12502,140.39,140.38,12.04]
[1728540580781,3.69062,140.39,140.38,12.04]
[1728540580976,3.69062,140.39,140.36,5.1]
[1728540581285,3.69062,140.39,140.37,12.04]
[1728540585386,3.566,140.38,140.36,17.14]
[1728540586988,3.566,140.38,140.37,12.04]
[1728540589284,0.12502,140.39,140.37,12.04]
[1728540589285,3.69072,140.39,140.37,12.04]
[1728540589883,3.69072,140.39,140.36,5.1]
[1728540590191,0.12502,140.39,140.38,12.04]
[1728540593689,3.5652,140.41,140.38,12.04]
[1728540593998,3.5649,140.42,140.4,12.04]
[1728540594593,13.4157,140.44,140.4,12.04]
[1728540594890,3.565,140.41,140.4,12.04]
[1728540595193,3.5652,140.41,140.39,12.04]
[1728540596088,3.5652,140.41,140.4,12.04]
[1728540597393,3.5649,140.42,140.4,12.04]
[1728540598093,3.5649,140.42,140.41,12.04]
[1728540600195,1.3757,140.44,140.41,12.04]
[1728540600386,3.5648,140.42,140.41,12.04]
[1728540601087,3.5654,140.4,140.39,12.04]
[1728540601791,12.04,140.41,140.35,3.5665]
[1728540601992,12.04,140.41,140.37,12.04]
[1728540602293,3.5653,140.4,140.38,12.04]
[1728540603494,3.5651,140.41,140.38,12.04]
[1728540604488,3.5653,140.4,140.38,12.04]
[1728540606089,13.4137,140.43,140.38,12.04]
[1728540606289,3.5656,140.39,140.38,12.04]
[1728540612900,3.5653,140.4,140.38,12.04]
[1728540613095,3.5653,140.4,140.39,12.04]
[1728540613298,1.3737,140.43,140.39,12.04]
[1728540613490,3.5652,140.41,140.39,12.04]
[1728540618204,1.3737,140.43,140.39,12.04]
[1728540618404,3.5653,140.4,140.39,12.04]
[1728540618705,3.5653,140.4,140.36,8.6662]
[1728540619007,3.5653,140.4,140.39,12.04]
[1728540620618,3.5658,140.38,140.37,5.08]
[1728540620909,13.4137,140.43,140.37,17.12]
[1728540621110,13.4137,140.43,140.39,12.04]
[1728540621314,3.5653,140.4,140.39,12.04]
[1728540634720,1.3737,140.43,140.39,12.04]
[1728540634931,3.5648,140.42,140.4,12.04]
[1728540635225,1.3737,140.43,140.4,12.04]
[1728540635526,3.5648,140.42,140.4,12.04]
[1728540637225,3.565,140.41,140.4,12.04]
[1728540638821,3.565,140.42,140.4,12.04]
[1728540639033,13.4137,140.43,140.4,12.04]
[1728540640424,3.565,140.41,140.4,12.04]
[1728540641228,3.565,140.41,140.38,12.04]
[1728540641432,3.5654,140.4,140.38,12.04]
[1728540643828,3.5654,140.4,140.34,1.4183]
[1728540643829,3.5658,140.38,140.34,4.9851]
[1728540644023,3.5658,140.38,140.36,12.04]
[1728540644226,3.5658,140.38,140.35,5.08]
[1728540644425,3.5658,140.38,140.36,12.04]
[1728540646819,12.04,140.41,140.36,12.04]
[1728540647019,3.5661,140.37,140.36,12.04]
[1728540651228,3.5659,140.38,140.36,12.04]
[1728540657436,5.08,140.41,140.37,12.04]
[1728540657625,1.3737,140.43,140.4,12.04]
[1728540658738,13.4137,140.43,140.4,12.04]
[1728540659442,3.565,140.41,140.4,12.04]
[1728540661544,13.4137,140.43,140.38,12.04]
[1728540661837,3.5654,140.4,140.38,12.04]
[1728540663849,0.12502,140.45,140.39,12.04]
[1728540664053,0.12502,140.45,140.42,12.04]
[1728540664237,0.12502,140.45,140.44,12.04]
[1728540666039,0.12502,140.45,140.43,17.12]
[1728540668238,0.12502,140.45,140.44,12.04]
[1728540670547,3.5634,140.48,140.44,12.04]
[1728540671946,3.5634,140.48,140.46,12.04]
[1728540672144,2.7353,140.5,140.46,12.04]
[1728540672546,1.3941,140.5,140.46,12.04]
[1728540672747,4.957,140.5,140.46,12.04]
[1728540673044,1.3941,140.5,140.46,12.04]
[1728540674450,3.563,140.49,140.46,12.04]
[1728540674746,0.12502,140.51,140.47,12.04]
[1728540674948,0.12502,140.51,140.48,12.04]
[1728540675254,3.68762,140.51,140.48,12.04]
[1728540675445,0.12502,140.51,140.48,12.04]
[1728540676446,3.68762,140.51,140.48,12.04]
[1728540679450,3.5628,140.5,140.48,12.04]
[1728540679759,12.04,140.5,140.46,17.12]
[1728540680253,12.04,140.5,140.41,2.7139]
[1728540680455,12.04,140.5,140.46,12.04]
[1728540680655,12.04,140.5,140.47,12.04]
[1728540680855,3.5632,140.49,140.47,12.04]
[1728540681656,3.5629,140.5,140.47,12.04]
[1728540682258,3.5629,140.5,140.48,12.04]
[1728540682954,0.12502,140.51,140.45,8.6438]
[1728540683161,3.5632,140.49,140.46,12.04]
[1728540683456,3.5632,140.49,140.46,12.02]
[1728540683646,12.16502,140.51,140.45,5.08]
[1728540683849,3.5636,140.47,140.44,5.08]
[1728540684061,12.04,140.5,140.46,12.04]
[1728540685052,3.5631,140.49,140.46,12.04]
[1728540687759,3.5634,140.48,140.44,8.6442]
[1728540687955,3.5634,140.48,140.46,12.04]
[1728540688862,3.5634,140.48,140.47,12.04]
[1728540689360,3.5632,140.49,140.47,12.04]
[1728540690654,12.04,140.5,140.47,12.04]
[1728540691057,5.20502,140.51,140.47,12.04]
[1728540691461,3.5631,140.49,140.47,12.04]
[1728540692363,3.5628,140.5,140.48,12.04]
[1728540693559,3.563,140.49,140.46,12.04]
[1728540693863,12.04,140.48,140.41,95.27972812]
[1728540694060,3.5636,140.47,140.44,12.04]
[1728540694264,12.04,140.48,140.44,12.04]
[1728540694657,3.5635,140.48,140.45,12.04]
[1728540694856,3.5635,140.48,140.46,12.04]
[1728540695658,0.12502,140.51,140.47,12.04]
[1728540695861,3.5629,140.5,140.49,12.04]
[1728540698667,3.68762,140.51,140.49,12.04]
[1728540699263,3.68762,140.51,140.5,12.04]
[1728540699465,0.12502,140.51,140.5,12.04]
[1728540700671,3.68752,140.51,140.5,12.04]
[1728540702365,0.12502,140.51,140.5,12.04]
[1728540707569,3.5629,140.5,140.48,12.04]
[1728540707873,0.12502,140.51,140.48,12.04]
[1728540708067,3.5629,140.5,140.48,12.04]
[1728540708673,0.12502,140.51,140.48,12.04]
[1728540708974,3.68772,140.51,140.48,12.04]
[1728540710571,3.5628,140.5,140.48,12.04]
[1728540714776,3.5628,140.5,140.49,12.04]
[1728540714975,3.68762,140.51,140.49,12.04]
[1728540715178,0.12502,140.51,140.49,12.04]
[1728540719781,3.68752,140.51,140.49,12.04]
[1728540720182,0.12502,140.51,140.5,12.04]
[1728540721596,0.12502,140.51,140.46,1.4298]